[Event "Schack-SM 2023: Junior-SM"]
[Site "Helsingborg Arena, Mellersta Stenbocksgatan 14, Helsingborg, Sweden"]
[Date "2023.07.05"]
[Round "5.5"]
[White "Ostlund, Joar"]
[Black "Lindholm, Gustav"]
[Result "1-0"]
[TimeControl "90 minutes for 40 moves + 30 minutes for the rest of the game + 30 seconds per move from move one."]
[WhiteTitle "CM"]
[WhiteElo "2265"]
[BlackElo "2155"]

1. d4 {[%clk 01:30:48]} {[%emt 00:00:11]} d5 {[%clk 01:30:55]} {[%emt
00:00:06]} 2. c4 {[%clk 01:31:14]} {[%emt 00:00:04]} c6 {[%clk 01:31:21]}
{[%emt 00:00:04]} 3. Nf3 {[%clk 01:31:38]} {[%emt 00:00:05]} Nf6 {[%clk
01:31:45]} {[%emt 00:00:06]} 4. Nc3 {[%clk 01:31:51]} {[%emt 00:00:15]} dxc4
{[%clk 01:32:07]} {[%emt 00:00:10]} 5. a4 {[%clk 01:32:13]} {[%emt 00:00:08]}
Bf5 {[%clk 01:32:26]} {[%emt 00:00:11]} 6. Ne5 {[%clk 01:32:35]} {[%emt
00:00:08]} Nbd7 {[%clk 01:32:46]} {[%emt 00:00:09]} 7. Nxc4 {[%clk 01:32:56]}
{[%emt 00:00:09]} Qc7 {[%clk 01:32:36]} {[%emt 00:00:40]} 8. g3 {[%clk
01:33:16]} {[%emt 00:00:10]} e5 {[%clk 01:32:46]} {[%emt 00:00:21]} 9. dxe5
{[%clk 01:33:37]} {[%emt 00:00:09]} Nxe5 {[%clk 01:33:11]} {[%emt 00:00:05]} 10.
Bf4 {[%clk 01:33:57]} {[%emt 00:00:09]} Nfd7 {[%clk 01:33:37]} {[%emt
00:00:04]} 11. Bg2 {[%clk 01:34:01]} {[%emt 00:00:26]} g5 {[%clk 01:33:44]}
{[%emt 00:00:24]} 12. Bxe5 {[%clk 01:34:04]} {[%emt 00:00:27]} Nxe5 {[%clk
01:34:04]} {[%emt 00:00:10]} 13. Qd4 {[%clk 01:34:26]} {[%emt 00:00:08]} f6
{[%clk 01:33:53]} {[%emt 00:00:41]} 14. O-O-O {[%clk 01:33:36]} {[%emt
00:01:19]} Be7 {[%clk 01:03:54]} {[%emt 00:30:30]} 15. Ne3 {[%clk 01:32:51]}
{[%emt 00:01:15]} Be6 {[%clk 00:58:11]} {[%emt 00:06:12]} 16. Qe4 {[%clk
01:32:43]} {[%emt 00:00:38]} Bd7 {[%clk 00:50:34]} {[%emt 00:08:07]} 17. Nf5
{[%clk 01:09:53]} {[%emt 00:23:20]} Bxf5 {[%clk 00:47:59]} {[%emt 00:03:05]} 18.
Qxf5 {[%clk 01:10:18]} {[%emt 00:00:04]} Qc8 {[%clk 00:43:23]} {[%emt
00:05:06]} 19. Qe4 {[%clk 01:07:48]} {[%emt 00:03:00]} Qg4 {[%clk 00:40:24]}
{[%emt 00:03:28]} 20. Qc2 {[%clk 01:02:13]} {[%emt 00:06:05]} Qe6 {[%clk
00:34:09]} {[%emt 00:06:46]} 21. Be4 {[%clk 00:57:45]} {[%emt 00:04:58]} h6
{[%clk 00:28:11]} {[%emt 00:06:27]} 22. h4 {[%clk 00:53:26]} {[%emt 00:04:49]}
Rd8 {[%clk 00:26:29]} {[%emt 00:02:12]} 23. Rxd8+ {[%clk 00:48:35]} {[%emt
00:05:22]} Bxd8 {[%clk 00:26:55]} {[%emt 00:00:04]} 24. hxg5 {[%clk 00:48:08]}
{[%emt 00:00:56]} fxg5 {[%clk 00:27:20]} {[%emt 00:00:05]} 25. f4 {[%clk
00:46:18]} {[%emt 00:02:20]} Ng4 {[%clk 00:26:33]} {[%emt 00:01:17]} 26. Bf5
{[%clk 00:44:19]} {[%emt 00:02:29]} Qe3+ {[%clk 00:26:52]} {[%emt 00:00:11]} 27.
Kb1 {[%clk 00:44:45]} {[%emt 00:00:05]} Nf2 {[%clk 00:21:17]} {[%emt 00:06:05]}
28. Bg6+ {[%clk 00:33:32]} {[%emt 00:11:42]} Kd7 {[%clk 00:20:13]} {[%emt
00:01:35]} 29. Bf5+ {[%clk 00:31:46]} {[%emt 00:02:15]} Ke8 {[%clk 00:20:39]}
{[%emt 00:00:04]} 30. Nd1 {[%clk 00:27:36]} {[%emt 00:04:41]} Nxd1 {[%clk
00:13:28]} {[%emt 00:07:40]} 31. Rxd1 {[%clk 00:27:55]} {[%emt 00:00:10]} gxf4
{[%clk 00:13:17]} {[%emt 00:00:42]} 32. Bg6+ {[%clk 00:27:13]} {[%emt
00:01:12]} Ke7 {[%clk 00:13:36]} {[%emt 00:00:11]} 33. Qf5 {[%clk 00:26:49]}
{[%emt 00:00:54]} Qe6 {[%clk 00:12:54]} {[%emt 00:01:13]} 34. Qc5+ {[%clk
00:27:08]} {[%emt 00:00:10]} Kf6 {[%clk 00:13:21]} {[%emt 00:00:03]} 35. Rd6
{[%clk 00:27:26]} {[%emt 00:00:11]} 1-0

[Event "Schack-SM 2023: Mastarklassen"]
[Site "Helsingborg Arena, Mellersta Stenbocksgatan 14, Helsingborg, Sweden"]
[Date "2023.07.05"]
[Round "5.8"]
[White "Persson, Lars 1971"]
[Black "Nylen, Anders"]
[Result "1/2-1/2"]
[TimeControl "90 minutes for 40 moves + 30 minutes for the rest of games + 30 seconds per move from move one."]
[WhiteElo "1941"]
[BlackElo "2094"]

1. d4 {[%clk 01:29:57]} {[%emt 00:01:02]} Nf6 {[%clk 01:30:55]} {[%emt
00:00:07]} 2. c4 {[%clk 01:30:16]} {[%emt 00:00:10]} g6 {[%clk 01:31:19]}
{[%emt 00:00:07]} 3. Nc3 {[%clk 01:30:14]} {[%emt 00:00:31]} d5 {[%clk
01:31:43]} {[%emt 00:00:06]} 4. cxd5 {[%clk 01:30:34]} {[%emt 00:00:10]} Nxd5
{[%clk 01:32:02]} {[%emt 00:00:11]} 5. e4 {[%clk 01:30:54]} {[%emt 00:00:10]}
Nxc3 {[%clk 01:32:24]} {[%emt 00:00:07]} 6. bxc3 {[%clk 01:31:16]} {[%emt
00:00:08]} Bg7 {[%clk 01:32:46]} {[%emt 00:00:09]} 7. Be3 {[%clk 01:29:09]}
{[%emt 00:02:36]} c5 {[%clk 01:32:55]} {[%emt 00:00:22]} 8. Rc1 {[%clk
01:24:29]} {[%emt 00:05:09]} O-O {[%clk 01:31:51]} {[%emt 00:01:34]} 9. Qd2
{[%clk 01:00:32]} {[%emt 00:24:28]} Qa5 {[%clk 01:30:03]} {[%emt 00:02:16]} 10.
Nf3 {[%clk 00:53:52]} {[%emt 00:07:11]} Rd8 {[%clk 01:28:35]} {[%emt 00:01:58]}
11. d5 {[%clk 00:41:07]} {[%emt 00:13:15]} Nd7 {[%clk 01:20:58]} {[%emt
00:08:07]} 12. c4 {[%clk 00:38:00]} {[%emt 00:03:37]} Qa3 {[%clk 01:20:25]}
{[%emt 00:01:03]} 13. Be2 {[%clk 00:30:28]} {[%emt 00:08:02]} Ne5 {[%clk
01:09:00]} {[%emt 00:11:54]} 14. Nxe5 {[%clk 00:25:38]} {[%emt 00:05:20]} Bxe5
{[%clk 01:09:27]} {[%emt 00:00:03]} 15. O-O {[%clk 00:23:40]} {[%emt 00:02:28]}
Bd7 {[%clk 01:07:14]} {[%emt 00:02:44]} 16. Rb1 {[%clk 00:17:47]} {[%emt
00:06:22]} b6 {[%clk 01:04:22]} {[%emt 00:03:23]} 1/2-1/2

[Event "Schack-SM 2023: Veteran-SM 65+"]
[Site "Helsingborg Arena, Mellersta Stenbocksgatan 14, Helsingborg, Sweden"]
[Date "2023.07.05"]
[Round "5.3"]
[White "Hedin, Gunnar"]
[Black "Green, Per"]
[Result "1-0"]
[TimeControl "90 minutes for 40 moves + 30 minutes for the rest of games + 30 seconds per move from move one."]
[WhiteElo "2093"]
[BlackElo "1898"]

1. d4 {[%clk 01:30:56]} {[%emt 00:00:03]} Nf6 {[%clk 01:31:11]} {[%emt
00:00:18]} 2. c4 {[%clk 01:31:14]} {[%emt 00:00:13]} e6 {[%clk 01:31:12]}
{[%emt 00:00:29]} 3. Nc3 {[%clk 01:31:35]} {[%emt 00:00:08]} Bb4 {[%clk
01:31:24]} {[%emt 00:00:18]} 4. e3 {[%clk 01:31:23]} {[%emt 00:00:42]} c5
{[%clk 01:31:09]} {[%emt 00:00:46]} 5. Nge2 {[%clk 01:28:28]} {[%emt 00:03:24]}
d5 {[%clk 01:30:39]} {[%emt 00:01:00]} 6. a3 {[%clk 01:24:45]} {[%emt
00:04:15]} Ba5 {[%clk 01:30:26]} {[%emt 00:00:42]} 7. dxc5 {[%clk 01:20:26]}
{[%emt 00:04:50]} dxc4 {[%clk 01:30:29]} {[%emt 00:00:26]} 8. Qxd8+ {[%clk
01:12:22]} {[%emt 00:08:34]} Bxd8 {[%clk 01:30:48]} {[%emt 00:00:09]} 9. Nd4
{[%emt 00:01:24]} Nbd7 {[%clk 01:29:33]} {[%emt 00:01:41]} 10. Bxc4 {[%clk
01:03:39]} {[%emt 00:08:25]} Nxc5 {[%clk 01:29:11]} {[%emt 00:00:52]} 11. b4
{[%clk 00:57:05]} {[%emt 00:07:04]} Nce4 {[%clk 01:25:36]} {[%emt 00:04:04]} 12.
Nxe4 {[%clk 00:55:27]} {[%emt 00:02:09]} Nxe4 {[%clk 01:25:22]} {[%emt
00:00:43]} 13. Bb2 {[%clk 00:53:58]} {[%emt 00:02:00]} O-O {[%clk 01:24:50]}
{[%emt 00:01:02]} 14. f3 {[%clk 00:48:46]} {[%emt 00:05:43]} Nd6 {[%clk
01:19:51]} {[%emt 00:05:27]} 15. Bd3 {[%clk 00:46:45]} {[%emt 00:02:32]} Bb6
{[%clk 01:14:32]} {[%emt 00:02:40]} 16. Ke2 {[%clk 00:47:14]} Bd7 {[%clk
01:13:10]} {[%emt 00:05:02]} 17. a4 {[%clk 00:40:09]} {[%emt 00:07:36]} a5
{[%clk 01:11:09]} {[%emt 00:02:29]} 18. b5 {[%clk 00:39:49]} {[%emt 00:00:51]}
Rfc8 {[%clk 01:10:13]} {[%emt 00:01:25]} 19. Rhc1 {[%clk 00:33:49]} {[%emt
00:06:31]} Bc5 {[%clk 01:05:53]} {[%emt 00:04:49]} 20. Nb3 {[%clk 00:32:21]}
{[%emt 00:01:59]} Bb4 {[%clk 01:05:47]} {[%emt 00:00:35]} 21. Bd4 {[%clk
00:31:09]} {[%emt 00:01:42]} Rxc1 {[%clk 01:05:03]} {[%emt 00:01:15]} 22. Rxc1
{[%clk 00:31:20]} {[%emt 00:00:19]} Rc8 {[%clk 01:05:16]} {[%emt 00:00:16]} 23.
Rxc8+ {[%clk 00:31:28]} {[%emt 00:00:23]} Nxc8 {[%clk 01:05:07]} {[%emt
00:00:39]} 24. Nc5 {[%clk 00:29:29]} {[%emt 00:02:29]} e5 {[%clk 00:51:38]}
{[%emt 00:13:58]} 25. Nxd7 {[%clk 00:29:14]} {[%emt 00:00:46]} exd4 {[%clk
00:52:01]} {[%emt 00:00:07]} 26. exd4 {[%clk 00:29:14]} {[%emt 00:00:30]} Nd6
{[%clk 00:50:51]} {[%emt 00:01:39]} 27. Be4 {[%clk 00:22:27]} {[%emt 00:07:18]}
g6 {[%clk 00:44:09]} {[%emt 00:07:12]} 28. Bd5 {[%clk 00:20:16]} {[%emt
00:02:41]} Kg7 {[%clk 00:44:19]} {[%emt 00:00:20]} 29. Kd3 {[%clk 00:20:27]}
{[%emt 00:00:19]} f6 {[%clk 00:44:13]} {[%emt 00:00:36]} 30. Nc5 {[%clk
00:20:31]} 1-0

[Event "Schack-SM 2023: Veteran-SM 50+"]
[Site "Helsingborg Arena, Mellersta Stenbocksgatan 14, Helsingborg, Sweden"]
[Date "2023.07.05"]
[Round "5.3"]
[White "Ljung, Rickard"]
[Black "Eriksson, Bengt"]
[Result "1/2-1/2"]
[TimeControl "90 minutes for 40 moves + 30 minutes for the rest of games + 30 seconds per move from move one."]
[WhiteElo "1939"]
[BlackElo "2016"]

1. d4 {[%clk 01:30:57]} {[%emt 00:00:02]} Nf6 {[%clk 01:30:37]} {[%emt
00:00:24]} 2. Bf4 {[%clk 01:31:08]} {[%emt 00:00:19]} c5 {[%clk 01:29:33]}
{[%emt 00:01:33]} 3. dxc5 {[%clk 01:25:32]} {[%emt 00:06:07]} Na6 {[%clk
01:28:06]} {[%emt 00:01:57]} 4. Nd2 {[%clk 01:12:25]} {[%emt 00:13:36]} Nxc5
{[%clk 01:23:23]} {[%emt 00:05:14]} 5. Nb3 {[%clk 01:12:05]} {[%emt 00:00:50]}
g6 {[%clk 01:14:12]} {[%emt 00:09:41]} 6. e3 {[%clk 01:09:14]} {[%emt
00:03:21]} Bg7 {[%clk 01:04:56]} {[%emt 00:09:45]} 7. Nf3 {[%clk 01:03:00]}
{[%emt 00:06:45]} O-O {[%clk 00:56:06]} {[%emt 00:09:20]} 8. Nxc5 {[%clk
00:56:56]} {[%emt 00:06:34]} Qa5+ {[%clk 00:56:21]} {[%emt 00:00:14]} 9. c3
{[%clk 00:57:14]} {[%emt 00:00:13]} Qxc5 {[%clk 00:56:33]} {[%emt 00:00:18]} 10.
Be5 {[%clk 00:48:25]} {[%emt 00:09:19]} d6 {[%clk 00:51:32]} {[%emt 00:05:32]}
11. Bd4 {[%clk 00:48:21]} {[%emt 00:00:34]} Qa5 {[%clk 00:49:05]} {[%emt
00:02:56]} 12. Bxf6 {[%clk 00:48:35]} {[%emt 00:00:16]} Bxf6 {[%clk 00:49:24]}
{[%emt 00:00:11]} 13. Be2 {[%clk 00:45:44]} {[%emt 00:03:21]} b5 {[%clk
00:40:09]} {[%emt 00:09:45]} 14. a3 {[%clk 00:43:57]} {[%emt 00:02:17]} Qb6
{[%clk 00:37:14]} {[%emt 00:03:25]} 15. O-O {[%clk 00:41:56]} {[%emt 00:02:31]}
Bd7 {[%clk 00:32:44]} {[%emt 00:05:00]} 16. Qb3 {[%clk 00:40:14]} {[%emt
00:02:11]} Rab8 {[%clk 00:30:34]} {[%emt 00:02:41]} 17. Nd4 {[%clk 00:36:17]}
{[%emt 00:04:27]} Rfc8 {[%clk 00:26:44]} {[%emt 00:04:19]} 18. Rfc1 {[%clk
00:35:32]} {[%emt 00:01:15]} a5 {[%clk 00:25:51]} {[%emt 00:01:24]} 19. Qd1
{[%clk 00:31:33]} {[%emt 00:04:30]} Ra8 {[%clk 00:15:58]} {[%emt 00:10:22]} 20.
Nc2 {[%clk 00:28:23]} {[%emt 00:03:40]} Ra7 {[%clk 00:13:49]} {[%emt 00:02:40]}
21. Nd4 {[%clk 00:27:46]} {[%emt 00:01:06]} Rac7 {[%clk 00:13:08]} {[%emt
00:01:10]} 22. Nc2 {[%clk 00:22:28]} {[%emt 00:05:48]} Be6 {[%clk 00:08:31]}
{[%emt 00:05:07]} 23. Qd2 {[%clk 00:22:32]} {[%emt 00:00:26]} Bc4 {[%clk
00:07:21]} {[%emt 00:01:40]} 24. Bg4 {[%clk 00:22:39]} {[%emt 00:00:23]} Rb8
{[%clk 00:05:36]} {[%emt 00:02:16]} 25. h3 {[%clk 00:22:22]} {[%emt 00:00:46]}
Kg7 {[%clk 00:05:49]} {[%emt 00:00:17]} 26. Nd4 {[%clk 00:22:37]} {[%emt
00:00:16]} h5 {[%clk 00:05:44]} {[%emt 00:00:35]} 27. Bf3 {[%clk 00:22:33]}
{[%emt 00:00:34]} Rbc8 {[%clk 00:04:27]} {[%emt 00:01:47]} 28. Nc2 {[%clk
00:22:44]} {[%emt 00:00:19]} e5 {[%clk 00:03:32]} {[%emt 00:01:25]} 29. Rd1
{[%clk 00:21:25]} {[%emt 00:01:49]} Bb3 {[%clk 00:03:32]} {[%emt 00:00:30]} 30.
Bd5 {[%clk 00:21:41]} {[%emt 00:00:14]} Bxc2 {[%clk 00:01:12]} {[%emt
00:02:50]} 31. Qxc2 {[%clk 00:22:02]} {[%emt 00:00:08]} 1/2-1/2

[Event "Schack-SM 2023: Sverigemastarklassen"]
[Site "Helsingborg Arena, Mellersta Stenbocksgatan 14, Helsingborg, Sweden"]
[Date "2023.07.05"]
[Round "5.4"]
[White "Seo, Jung Min"]
[Black "Olsson, William"]
[Result "1-0"]
[TimeControl "90 minutes for 40 moves + 30 minutes for the rest of the game + 30 seconds per move from move one."]
[WhiteTitle "IM"]
[BlackTitle "FM"]
[WhiteElo "2469"]
[BlackElo "2383"]

1. e4 {[%clk 01:30:59]} c5 {[%clk 01:30:51]} {[%emt 00:00:10]} 2. Nf3 {[%clk
01:31:22]} {[%emt 00:00:06]} d6 {[%clk 01:31:17]} {[%emt 00:00:03]} 3. d4
{[%clk 01:31:50]} {[%emt 00:00:02]} cxd4 {[%clk 01:31:42]} {[%emt 00:00:05]} 4.
Nxd4 {[%clk 01:32:19]} {[%emt 00:00:02]} Nf6 {[%clk 01:32:05]} {[%emt
00:00:07]} 5. Nc3 {[%clk 01:32:48]} {[%emt 00:00:01]} g6 {[%clk 01:32:29]}
{[%emt 00:00:06]} 6. Be3 {[%clk 01:33:02]} {[%emt 00:00:16]} Bg7 {[%clk
01:32:56]} {[%emt 00:00:04]} 7. f3 {[%clk 01:33:26]} {[%emt 00:00:06]} O-O
{[%clk 01:33:22]} {[%emt 00:00:04]} 8. Qd2 {[%clk 01:33:53]} {[%emt 00:00:03]}
Nc6 {[%clk 01:33:48]} {[%emt 00:00:04]} 9. O-O-O {[%clk 01:34:20]} {[%emt
00:00:03]} d5 {[%clk 01:34:12]} {[%emt 00:00:06]} 10. exd5 {[%clk 01:34:40]}
{[%emt 00:00:10]} Nxd5 {[%clk 01:34:36]} {[%emt 00:00:06]} 11. Nxc6 {[%clk
01:35:07]} {[%emt 00:00:04]} bxc6 {[%clk 01:35:00]} {[%emt 00:00:05]} 12. Bd4
{[%clk 01:35:35]} {[%emt 00:00:02]} e5 {[%clk 01:35:11]} {[%emt 00:00:20]} 13.
Bc5 {[%clk 01:35:35]} {[%emt 00:00:29]} Re8 {[%clk 01:35:39]} {[%emt 00:00:02]}
14. Ne4 {[%clk 01:35:56]} {[%emt 00:00:09]} Qc7 {[%clk 01:35:15]} {[%emt
00:00:54]} 15. h4 {[%clk 01:33:40]} {[%emt 00:02:46]} f5 {[%clk 01:35:06]}
{[%emt 00:00:39]} 16. Nd6 {[%clk 01:34:05]} {[%emt 00:00:05]} Rd8 {[%clk
01:35:33]} {[%emt 00:00:03]} 17. Nxc8 {[%clk 01:34:31]} {[%emt 00:00:04]} Raxc8
{[%clk 01:35:53]} {[%emt 00:00:09]} 18. h5 {[%clk 01:34:57]} {[%emt 00:00:04]}
Nb6 {[%clk 01:26:25]} {[%emt 00:09:59]} 19. Bxb6 {[%clk 01:34:48]} {[%emt
00:00:39]} Rxd2 {[%clk 01:26:52]} {[%emt 00:00:03]} 20. Bc4+ {[%clk 01:35:02]}
{[%emt 00:00:16]} Kf8 {[%clk 01:27:20]} {[%emt 00:00:02]} 21. Bxc7 {[%clk
01:35:27]} {[%emt 00:00:05]} Rxd1+ {[%clk 01:27:46]} {[%emt 00:00:04]} 22. Rxd1
{[%clk 01:35:52]} {[%emt 00:00:05]} Rxc7 {[%clk 01:28:11]} {[%emt 00:00:05]} 23.
hxg6 {[%clk 01:36:15]} {[%emt 00:00:06]} hxg6 {[%clk 01:28:36]} {[%emt
00:00:04]} 24. Rd6 {[%clk 01:36:26]} {[%emt 00:00:19]} Bh6+ {[%clk 01:27:58]}
{[%emt 00:01:09]} 25. Kd1 {[%clk 01:24:19]} {[%emt 00:12:37]} Kg7 {[%clk
01:28:08]} {[%emt 00:00:19]} 26. Ke2 {[%clk 01:23:33]} {[%emt 00:01:16]} Bc1
{[%clk 01:15:54]} {[%emt 00:12:44]} 27. b3 {[%clk 01:23:43]} {[%emt 00:00:20]}
Ba3 {[%clk 01:10:51]} {[%emt 00:05:34]} 28. Re6 {[%clk 01:23:00]} {[%emt
00:01:13]} Bb2 {[%clk 01:07:30]} {[%emt 00:03:51]} 29. g4 {[%clk 01:18:34]}
{[%emt 00:04:56]} c5 {[%clk 01:01:31]} {[%emt 00:06:29]} 30. gxf5 {[%clk
01:18:34]} {[%emt 00:00:30]} gxf5 {[%clk 01:01:54]} {[%emt 00:00:07]} 31. Bd3
{[%clk 01:18:13]} {[%emt 00:00:51]} f4 {[%clk 00:53:53]} {[%emt 00:08:31]} 32.
Bb5 {[%clk 01:16:41]} {[%emt 00:02:02]} Rf7 {[%clk 00:45:44]} {[%emt 00:08:39]}
33. Rc6 {[%clk 01:06:48]} {[%emt 00:10:22]} Bd4 {[%clk 00:36:54]} {[%emt
00:09:21]} 34. Bc4 {[%clk 01:05:56]} {[%emt 00:01:22]} Re7 {[%clk 00:35:16]}
{[%emt 00:02:08]} 35. Bd5 {[%clk 01:05:49]} {[%emt 00:00:37]} Rd7 {[%clk
00:35:12]} {[%emt 00:00:34]} 36. Be6 {[%clk 01:06:02]} {[%emt 00:00:16]} Re7
{[%clk 00:32:56]} {[%emt 00:02:47]} 37. Kd3 {[%clk 01:03:56]} {[%emt 00:02:36]}
Kf6 {[%clk 00:33:12]} {[%emt 00:00:13]} 38. Bd5+ {[%clk 01:03:45]} {[%emt
00:00:42]} Kg5 {[%clk 00:31:28]} {[%emt 00:02:14]} 39. Be4 {[%clk 01:03:45]}
{[%emt 00:00:29]} Rg7 {[%clk 00:19:29]} {[%emt 00:12:30]} 40. c3 {[%clk
01:02:38]} {[%emt 00:01:37]} Be3 {[%clk 00:19:48]} {[%emt 00:00:10]} 41. Re6
{[%clk 01:03:03]} {[%emt 00:00:05]} Kh4 {[%clk 00:16:53]} {[%emt 00:03:26]} 42.
Rxe5 {[%clk 01:02:06]} {[%emt 00:01:27]} Kg3 {[%clk 00:17:19]} {[%emt
00:00:04]} 43. a4 {[%clk 01:01:16]} {[%emt 00:01:21]} Kf2 {[%clk 00:15:20]}
{[%emt 00:02:28]} 44. Kc4 {[%clk 00:52:56]} {[%emt 00:08:50]} Ke2 {[%clk
00:15:04]} {[%emt 00:00:47]} 45. Rd5 {[%clk 00:52:42]} {[%emt 00:00:43]} Rg1
{[%clk 00:06:53]} {[%emt 00:08:42]} 46. Rd7 {[%clk 00:47:16]} {[%emt 00:05:56]}
Rc1 {[%clk 00:06:17]} {[%emt 00:01:06]} 47. Rxa7 {[%clk 00:47:23]} {[%emt
00:00:23]} Bd2 {[%clk 00:04:45]} {[%emt 00:02:02]} 48. Bd5 {[%clk 00:45:25]}
{[%emt 00:02:29]} Rxc3+ {[%clk 00:05:05]} {[%emt 00:00:10]} 49. Kb5 {[%clk
00:45:52]} {[%emt 00:00:03]} 1-0

[Event "Schack-SM 2023: Mastarklassen-elit"]
[Site "Helsingborg Arena, Mellersta Stenbocksgatan 14, Helsingborg, Sweden"]
[Date "2023.07.05"]
[Round "5.3"]
[White "Lokander, Martin"]
[Black "Crevatin, Leo"]
[Result "1-0"]
[TimeControl "90 minutes for 40 moves + 30 minutes for the rest of games + 30 seconds per move from move one."]
[WhiteTitle "IM"]
[BlackTitle "FM"]
[WhiteElo "2444"]
[BlackElo "2265"]

1. e4 {[%clk 01:30:52]} {[%emt 00:00:08]} c6 {[%clk 01:30:28]} {[%emt
00:00:31]} 2. d4 {[%clk 01:31:11]} {[%emt 00:00:11]} d5 {[%clk 01:30:56]}
{[%emt 00:00:02]} 3. f3 {[%clk 01:31:33]} {[%emt 00:00:09]} e6 {[%clk
01:28:01]} {[%emt 00:03:25]} 4. Nc3 {[%clk 01:31:50]} {[%emt 00:00:13]} Bb4
{[%clk 01:27:23]} {[%emt 00:01:08]} 5. Bd2 {[%clk 01:32:13]} {[%emt 00:00:07]}
b6 {[%clk 01:17:20]} {[%emt 00:10:34]} 6. a3 {[%clk 01:31:08]} {[%emt
00:01:36]} Be7 {[%clk 01:10:25]} {[%emt 00:07:24]} 7. Be3 {[%clk 01:25:27]}
{[%emt 00:06:11]} Ba6 {[%clk 01:07:56]} {[%emt 00:02:58]} 8. Bxa6 {[%clk
01:25:49]} {[%emt 00:00:09]} Nxa6 {[%clk 01:08:20]} {[%emt 00:00:06]} 9. Qd3
{[%clk 01:26:01]} {[%emt 00:00:19]} Nc7 {[%clk 01:07:22]} {[%emt 00:01:28]} 10.
O-O-O {[%clk 01:18:23]} {[%emt 00:08:07]} Nf6 {[%clk 01:04:35]} {[%emt
00:03:18]} 11. Nh3 {[%clk 01:14:07]} {[%emt 00:04:45]} Qc8 {[%clk 00:59:04]}
{[%emt 00:05:59]} 12. Bf4 {[%clk 01:12:38]} {[%emt 00:02:01]} Nh5 {[%clk
00:51:26]} {[%emt 00:08:08]} 13. Be5 {[%clk 01:04:30]} {[%emt 00:08:38]} Nf6
{[%clk 00:46:47]} {[%emt 00:05:09]} 14. g4 {[%clk 01:00:52]} {[%emt 00:04:08]}
O-O {[%clk 00:46:53]} {[%emt 00:00:24]} 15. Rhe1 {[%clk 00:56:05]} {[%emt
00:05:19]} Re8 {[%clk 00:43:46]} {[%emt 00:03:36]} 16. Nf2 {[%clk 00:50:36]}
{[%emt 00:05:58]} b5 {[%clk 00:41:04]} {[%emt 00:03:12]} 17. h4 {[%clk
00:40:00]} {[%emt 00:11:05]} a5 {[%clk 00:38:46]} {[%emt 00:02:47]} 18. Bxf6
{[%clk 00:33:09]} {[%emt 00:07:23]} Bxf6 {[%clk 00:38:44]} {[%emt 00:00:31]} 19.
e5 {[%clk 00:30:25]} {[%emt 00:03:15]} Be7 {[%clk 00:37:40]} {[%emt 00:01:34]}
20. Ne2 {[%clk 00:30:16]} {[%emt 00:00:39]} b4 {[%clk 00:31:12]} {[%emt
00:06:59]} 21. a4 {[%clk 00:29:40]} {[%emt 00:01:05]} Qa6 {[%clk 00:28:08]}
{[%emt 00:03:33]} 22. Qe3 {[%clk 00:25:08]} {[%emt 00:05:02]} b3 {[%clk
00:23:37]} {[%emt 00:05:03]} 23. cxb3 {[%clk 00:24:12]} {[%emt 00:01:25]} Rab8
{[%clk 00:16:47]} {[%emt 00:07:19]} 24. Kb1 {[%clk 00:18:53]} {[%emt 00:05:50]}
Qb6 {[%clk 00:13:09]} {[%emt 00:04:08]} 25. Nc1 {[%clk 00:15:54]} {[%emt
00:03:28]} c5 {[%clk 00:13:09]} {[%emt 00:00:30]} 26. Nfd3 {[%clk 00:15:54]}
{[%emt 00:00:30]} c4 {[%clk 00:10:27]} {[%emt 00:03:13]} 27. Nc5 {[%clk
00:16:20]} {[%emt 00:00:05]} Bxc5 {[%clk 00:08:18]} {[%emt 00:02:38]} 28. dxc5
{[%clk 00:16:46]} {[%emt 00:00:04]} Qb4 {[%clk 00:07:11]} {[%emt 00:01:36]} 29.
h5 {[%clk 00:16:24]} {[%emt 00:00:54]} Rec8 {[%clk 00:05:58]} {[%emt 00:01:42]}
30. h6 {[%clk 00:16:40]} {[%emt 00:00:15]} Ne8 {[%clk 00:04:29]} {[%emt
00:01:59]} 31. hxg7 {[%clk 00:16:19]} {[%emt 00:00:51]} Qxc5 {[%clk 00:04:16]}
{[%emt 00:00:43]} 32. Qh6 {[%clk 00:14:14]} {[%emt 00:02:34]} cxb3 {[%clk
00:03:46]} {[%emt 00:01:00]} 33. Rd2 {[%clk 00:14:27]} {[%emt 00:00:17]} Nxg7
{[%clk 00:02:13]} {[%emt 00:02:03]} 34. Rh2 {[%clk 00:14:25]} {[%emt 00:00:33]}
Kf8 {[%clk 00:01:35]} {[%emt 00:01:07]} 35. Qxh7 {[%clk 00:14:19]} {[%emt
00:00:36]} Ne8 {[%clk 00:01:20]} {[%emt 00:00:44]} 36. g5 {[%clk 00:13:42]}
{[%emt 00:01:08]} Qd4 {[%clk 00:00:49]} {[%emt 00:01:01]} 37. g6 {[%clk
00:13:23]} {[%emt 00:00:49]} Rb7 {[%clk 00:00:31]} {[%emt 00:00:47]} 38. Qh8+
{[%clk 00:13:26]} {[%emt 00:00:27]} Ke7 {[%clk 00:00:47]} {[%emt 00:00:15]} 39.
gxf7 {[%clk 00:13:41]} {[%emt 00:00:15]} Qxa4 {[%clk 00:00:36]} {[%emt
00:00:40]} 40. f8=Q+ {[%clk 00:13:39]} {[%emt 00:00:32]} Kd7 {[%clk 00:01:03]}
{[%emt 00:00:03]} 41. Rh7+ {[%clk 00:13:48]} {[%emt 00:00:22]} Kc6 {[%clk
00:01:13]} {[%emt 00:00:18]} 42. Qxe8+ {[%clk 00:14:14]} {[%emt 00:00:04]} Rxe8
{[%clk 00:01:41]} {[%emt 00:00:02]} 43. Qxe8+ {[%clk 00:14:37]} {[%emt
00:00:07]} Kc5 {[%clk 00:02:09]} {[%emt 00:00:02]} 44. Nd3+ {[%clk 00:14:53]}
{[%emt 00:00:14]} 1-0